[Event "Chhattisgarh Masters GM 2022"]
[Site "Chhattisgarh"]
[Date "2022.09.21"]
[Round "3.7"]
[White "Ilamparthi A R"]
[Black "Praloy Sahoo"]
[Result "1/2-1/2"]
[ECO "C00"]
[WhiteElo "2269"]
[BlackElo "2117"]
[Annotator "TA"]
[PlyCount "98"]
[EventDate "2022.09.19"]
[EventCountry "IND"]
[SourceTitle "playchess.com"]
[Source "ChessBase"]
[SourceQuality "1"]
[TimeControl "5400+30"]

{[%evp 14,98,2,2,4,0,52,-5,-14,-77,-71,-81,-84,-71,-26,-89,-65,-106,-105,-91,-102,-143,-127,-140,-147,-84,-53,-110,-54,-116,-90,-161,-161,-177,-47,-46,-44,-42,-37,-192,-177,-252,-249,-310,-46,-46,-44,-47,-43,-54,-54,-54,-53,-62,-61,-103,-79,-85,-16,-83,-37,-58,-58,-71,-67,-68,-64,-55,0,-64,-58,-129,-70,-102,-98,-99,-70,-70,-45,-71,0,-36,-27,-27,-15,-23,-14]} 1. e4 {[%emt 0:00:02]} e6 {[%emt 0:00:46]} 2. d3 {[%emt 0:00:29]} d5 {[%emt 0:02:04]} 3. Nd2 {[%emt 0:01:06]} Nf6 {[%emt 0:00:06][%cal Bg8f6,Bf6d7,Bd7c5][%mdl 32]} 4. Ngf3 {[%emt 0:00:18]} Nc6 {[%emt 0:00:25]} 5. c3 {[%emt 0:00:18]} a5 {[%emt 0:02:53]} 6. e5 {[%emt 0:01:05]} Nd7 {[%emt 0:00:23]} 7. d4 {[%emt 0:00:02]} f6 {[%emt 0:00:35]} 8. Bb5 {[%emt 0:00:09]} fxe5 {[%emt 0:00:37] C00: French: Unusual White 2nd moves.} 9. dxe5 {[%emt 0:00:12]} Be7 {[%emt 0:01:56]} 10. Qe2 {[%emt 0:01:13]} ({White should play} 10. Nd4 $14 Nxd4 11. cxd4) 10... O-O $11 {[%emt 0:00:38] [#] The position is equal.} 11. Bd3 $146 {[%emt 0:00:17] Against Rf5} (11. Nd4 $11 Ndxe5 12. Bxc6 Nxc6 13. Nxe6 Bxe6 14. Qxe6+ Kh8 15. O-O) ({Predecessor:} 11. O-O Nc5 12. Nb3 Nxb3 13. axb3 Bd7 14. Ra4 Be8 15. Bd3 Kh8 16. Nd4 Nxd4 17. Rxd4 {0-1 (78) Hauschild,H (2147)-Huch,R (2239) Bayern 2011}) 11... Nc5 $17 {[%emt 0:19:04]} 12. Bb1 {[%emt 0:01:12]} b6 $1 {[%emt 0:01:21]} 13. Nd4 {[%emt 0:01:49]} Qe8 {[%emt 0:21:12] White must now prevent ...Ba6.} 14. Qe3 {[%emt 0:34:07]} (14. Nxc6 $11 Qxc6 15. Qh5) 14... Ba6 {[%emt 0:06:27]} 15. N2f3 {[%emt 0:03:39]} Nxd4 $1 {[%emt 0:03:04]} 16. Nxd4 {[%emt 0:08:42]} Qh5 {[%emt 0:04:51][%cal Oc5e4]} 17. Bd2 {[%emt 0:05:49][%cal Oh2h4]} Ne4 {[%emt 0:15:19]} 18. Bxe4 {[%emt 0:00:51]} dxe4 {[%emt 0:00:01]} 19. Qxe4 {[%emt 0:03:26]} ({But not} 19. Nxe6 $2 Qg4 20. Nd4 (20. Nxf8 $2 Bc5 $19) 20... c5 $19) 19... Bc5 {[%emt 0:01:16]} 20. g4 {[%emt 0:07:53]} (20. h4 $15) 20... Qf7 {[%emt 0:01:05]} ({Not} 20... Qh4 21. Be3 $15 (21. Nxe6 $2 Qxf2+ 22. Kd1 Rad8 $19)) ({Black should try} 20... Qe8 $17 21. Be3 Rd8) 21. f4 {[%emt 0:03:24]} (21. Be3 $1 $15) 21... Bxd4 {[%emt 0:02:40]} 22. Qxd4 {[%emt 0:02:18] [#]} (22. cxd4 $17 Rac8 23. Rg1) 22... Rad8 $1 $36 {[%emt 0:01:10][%mdl 2048] Black is really pushing.} 23. Qf2 {[%emt 0:00:51]} Qg6 {[%emt 0:00:44]} (23... Qd7 $19 {Threatens to win with ...Qd5.} 24. b3 Qd3) 24. O-O-O $15 {[%emt 0:01:02]} Qxg4 {[%emt 0:00:08]} 25. Rhg1 {[%emt 0:01:22]} Qf5 {[%emt 0:01:23]} 26. Qh4 $2 {[%emt 0:03:35] [#]} (26. Qg2 $15 g6 27. Be3) 26... Be2 $1 $19 {[%emt 0:04:34]} 27. Qe7 {[%emt 0:05:44]} (27. Qg3 $142 Rd7 28. Rde1) 27... g6 {[%emt 0:01:58]} 28. Rg5 {[%emt 0:01:14]} Qf7 {[%emt 0:03:47]} (28... Qe4 $19 29. Qxe6+ Kh8) 29. Qxf7+ $15 {[%emt 0:00:07]} Rxf7 {[%emt 0:00:09]} 30. Re1 {[%emt 0:00:15]} Bf3 {[%emt 0:00:27]} 31. Rf1 {[%emt 0:02:39]} Rfd7 {[%emt 0:00:24]} 32. Rf2 {[%emt 0:00:08] Against Be2} Be4 {[%emt 0:00:17]} 33. Rg3 {[%emt 0:00:56]} a4 {[%emt 0:00:53]} 34. c4 {[%emt 0:01:03]} Bd3 {[%emt 0:00:51]} 35. b3 {[%emt 0:02:07]} Kf7 {[%emt 0:01:00]} (35... axb3 $17 36. axb3 Bf5) 36. Re3 {[%emt 0:01:28]} (36. Bc3 $11) 36... Ra8 {[%emt 0:01:56]} (36... axb3 $17 37. axb3 Bf5) 37. Bc3 {[%emt 0:00:50]} Bf5 {[%emt 0:00:22]} 38. Rg2 {[%emt 0:04:41]} Ke8 {[%emt 0:00:27]} 39. Re1 {[%emt 0:01:35]} Rd3 {[%emt 0:00:58]} 40. Rg3 {[%emt 0:00:07]} Rd7 {[%emt 0:01:05]} 41. Rg2 $1 {[%emt 0:00:02]} h5 {[%emt 0:00:13]} 42. Rgg1 {[%emt 0:01:41]} (42. Rd1 $15) 42... Bg4 {[%emt 0:00:32]} (42... b5 $17 43. Rd1 (43. cxb5 $2 axb3 44. Kb2 Rxa2+ 45. Kxb3 Rxh2 $19) 43... bxc4) 43. Rg2 {[%emt 0:01:09]} Rd3 {[%emt 0:01:01]} 44. Rg3 {[%emt 0:00:02]} Rdd8 {[%emt 0:00:34]} 45. Kb2 {[%emt 0:01:22]} Ra6 {[%emt 0:00:43]} 46. Rgg1 {[%emt 0:00:00][%cal Oh2h3]} Kd7 {[%emt 0:00:00]} (46... Ra7 $17) 47. Rg2 {[%emt 0:00:00]} (47. h3 $5 {[%cal Rh3g4]} Bf5 48. Rd1+ Ke7 49. Bb4+ c5 50. Be1 Rxd1 51. Bh4+ Kd7 52. Rxd1+ Kc8 53. Rd8+ Kc7 54. Rg8 $11) 47... Kc6 {[%emt 0:00:00]} 48. Rd2 {[%emt 0:00:00]} Rf8 {[%emt 0:00:00]} 49. b4 {[%emt 0:00:00] Hoping for b5+.} b5 {[%emt 0:00:00] Weighted Error Value: White=0.32/Black=0.28 (precise)} 1/2-1/2

[Event "Chhattisgarh Masters GM 2022"]
[Site "Chhattisgarh"]
[Date "2022.09.21"]
[Round "3.7"]
[White "Deshmukh, Anup"]
[Black "Laxman, R.R."]
[Result "0-1"]
[ECO "A21"]
[WhiteElo "2176"]
[BlackElo "2388"]
[Annotator "TA"]
[PlyCount "106"]
[EventDate "2022.09.19"]
[EventCountry "IND"]
[SourceTitle "playchess.com"]
[Source "ChessBase"]
[SourceQuality "1"]
[TimeControl "5400+30"]

{[%evp 9,106,25,16,0,16,3,0,0,20,14,13,14,3,3,0,-15,11,-126,-89,-75,-72,-79,-47,-47,-42,-35,-39,-42,-42,-47,-31,-44,-43,-43,-43,-44,-49,-36,-51,-53,-54,-58,0,-37,9,-96,0,0,0,0,0,0,0,-7,-7,-7,0,0,0,0,0,0,0,-71,0,0,0,0,0,-92,-64,-264,-222,-350,-204,-336,-352,-326,-295,-598,-621,-576,-541,-520,-510,-476,-450,-29990,-203,-35,0,-29983,-29984,-29995,-29996,-29996,-29997,-29997,-604]} 1. c4 {[%emt 0:00:03]} e5 {[%emt 0:00:08]} 2. Nc3 {[%emt 0:00:33]} d6 {[%emt 0:01:43]} 3. g3 {[%emt 0:01:17]} Be6 {[%emt 0:00:09]} 4. Nf3 {[%emt 0:00:41]} c5 {[%emt 0:02:30]} 5. Bg2 {[%emt 0:01:01]} Nc6 {[%emt 0:00:11]} 6. b3 {[%emt 0:01:03] A21: English Opening: 1...e5 2 Nc3.} g6 {[%emt 0:00:48]} 7. O-O {[%emt 0:02:41] [#]} Bg7 $146 {[%emt 0:00:07]} ({Predecessor:} 7... Nge7 8. Bb2 Bg7 9. e3 O-O 10. Ne2 Rc8 11. d4 cxd4 12. exd4 exd4 13. Nfxd4 a6 14. Nxc6 bxc6 15. Bxg7 Kxg7 {1-0 (29) Dubois,H (1836)-Kosciusko Morizet,A (1293) Europe Echecs INT 2021}) 8. Bb2 {[%emt 0:03:44] The position is equal.} Nh6 {[%emt 0:11:38][%cal Bg8h6,Bh6f5,Bf5h4,Bh4g2][%mdl 32]} 9. e3 {[%emt 0:04:33][%cal Od2d4]} Nf5 {[%emt 0:00:06] Inhibits d4.} (9... e4 10. Ng5 $1 $16) 10. Ne4 {[%emt 0:02:03]} O-O {[%emt 0:00:38]} 11. Nfg5 {[%emt 0:02:13]} Bd7 {[%emt 0:06:26]} 12. f4 {[%emt 0:03:03]} Qe7 {[%emt 0:02:10]} 13. g4 {[%emt 0:26:07]} (13. Nh3 $11) 13... Nh4 {[%emt 0:07:32] White must now prevent ...exf4.} 14. f5 {[%emt 0:00:47]} f6 {[%emt 0:00:23]} ({Much worse is} 14... gxf5 15. gxf5 Nxf5 16. Qb1 $11 (16. Qh5 Nh6 $11)) 15. Nh3 {[%emt 0:17:50]} Nxg2 {[%emt 0:04:39]} (15... gxf5 {feels hotter.} 16. gxf5 Nxf5 17. Qh5 Nh6) 16. Kxg2 {[%emt 0:00:18]} Nb4 {[%cal Oh7h5]} 17. Ng3 {[%emt 0:06:08] Prevents h5.} d5 {[%emt 0:03:30]} 18. a3 {[%emt 0:02:24]} Nd3 {[%emt 0:00:07]} 19. cxd5 {[%emt 0:01:10]} Nxb2 {[%emt 0:00:04]} 20. Qc2 {[%emt 0:00:19][%csl LRb2,LRg6]} Bb5 {[%emt 0:01:48]} 21. Qxb2 {[%emt 0:04:20]} Bxf1+ {[%emt 0:00:10]} 22. Rxf1 {[%emt 0:00:16]} Qd6 {[%emt 0:00:04]} 23. e4 {[%emt 0:01:26]} Bh6 {[%emt 0:00:09]} 24. Rf3 {[%emt 0:03:21]} Rac8 {[%emt 0:01:28]} 25. Nf2 {[%emt 0:00:14]} b5 {[%emt 0:01:01]} (25... Bg5 $15) 26. h4 {[%emt 0:00:11]} Bf4 {[%emt 0:00:08]} (26... g5 $1 $15 {feels stronger.} 27. h5 Rfd8) 27. Ne2 {[%emt 0:00:48]} (27. fxg6 $11 {keeps the balance.} hxg6 28. h5) 27... g5 {[%emt 0:01:05]} ({Black should play} 27... gxf5 $17 28. gxf5 Kh8) 28. Nxf4 $11 {[%emt 0:04:27]} gxf4 {[%emt 0:00:29]} 29. g5 {[%emt 0:00:24]} Rc7 {[%emt 0:02:31]} 30. Ng4 {[%emt 0:00:28]} Rg7 {[%emt 0:00:43]} 31. Kh3 {[%emt 0:03:17]} h5 {[%emt 0:05:15]} 32. gxh6 {[%emt 0:02:54]} Rxg4 {[%emt 0:02:44]} 33. Kxg4 {[%emt 0:00:07][%mdl 4096] Endgame Strongly threatening Kh3. KQR-KQR} Kh7 {[%emt 0:00:02]} 34. Kh3 {[%emt 0:03:03]} Rg8 {[%emt 0:00:15]} 35. d3 {[%emt 0:00:27]} Kxh6 {[%emt 0:00:19]} 36. Qf2 {[%emt 0:02:44]} (36. b4 $11) 36... Qe7 {[%emt 0:00:39]} (36... a5 $1 $17) 37. Kh2 {[%emt 0:00:38]} Qg7 38. Qf1 {[%emt 0:01:12]} Qg4 {[%emt 0:01:05]} 39. Qf2 {[%emt 0:00:14]} (39. Kh1 $11 {remains equal.}) 39... a5 $1 $17 {[%emt 0:01:25][%cal Ba7a5,Ba5a4][%mdl 32] Black is more active.} 40. Kh1 $2 {[%emt 0:01:00]} (40. Qf1 $1 $15) 40... a4 $1 $19 {[%emt 0:00:00]} 41. bxa4 {[%emt 0:00:00]} b4 {[%emt 0:00:00]} 42. axb4 {[%emt 0:00:00]} cxb4 {[%emt 0:00:00]} 43. Qf1 {[%emt 0:00:00][%cal Od3d4]} b3 {[%emt 0:00:00]} 44. Rf2 {[%emt 0:00:00]} Qg3 {[%emt 0:00:00]} 45. Rf3 {[%emt 0:00:00] [#]} Qg7 {[%emt 0:00:00] Hoping for ...b2.} 46. Rf2 {[%emt 0:00:00] [#]} Qa7 $1 {[%emt 0:00:00] Threatens to win with ...Qd4.} 47. Rg2 {[%emt 0:00:00]} Rg3 {[%emt 0:00:00]} 48. Qf2 {[%emt 0:00:00]} (48. d6 $19 Rh3+ 49. Rh2) 48... Qg7 $2 {[%emt 0:00:00]} (48... Rh3+ {mates} 49. Kg1 b2 50. Rg6+ Kh5 51. Qxa7 b1=Q+ 52. Kf2 Qc2+ 53. Ke1 Qc1+ 54. Kf2 Rh2+ 55. Rg2 Qd2+ 56. Kf1 Qxg2+ 57. Ke1 Qe2#) 49. d6 {[%emt 0:00:36] Rxg3 is the strong threat.} Qg4 {[%emt 0:22:09] ( -> ...b2)} 50. d7 $2 {[%emt 0:02:52][%mdl 8192]} (50. Rxg3 $11 fxg3 51. Qf1 (51. Qd2+ Kh5 $11) 51... g2+ 52. Qxg2 Qxh4+ 53. Qh2 (53. Kg1 Qe1+ 54. Kh2 Qh4+ 55. Qh3 Qxh3+ 56. Kxh3 b2 $11)) 50... Rh3+ {[%emt 0:01:48] Black mates.} 51. Rh2 {[%emt 0:01:35]} b2 {[%emt 0:00:04]} 52. Qxb2 {[%emt 0:01:16]} Qd1+ {[%emt 0:00:03]} 53. Kg2 {[%emt 0:00:09]} Rg3+ {[%emt 0:00:05] Weighted Error Value: White=0.34/Black=0.17 (very precise)} 0-1

[Event "Chhattisgarh Masters GM 2022"]
[Site "Chhattisgarh"]
[Date "2022.09.21"]
[Round "3.8"]
[White "Tahbaz, Arash"]
[Black "Utsab Chatterjee"]
[Result "1-0"]
[ECO "C00"]
[WhiteElo "2437"]
[BlackElo "2332"]
[Annotator "TA"]
[PlyCount "71"]
[EventDate "2022.09.19"]
[EventCountry "IND"]
[SourceTitle "playchess.com"]
[Source "ChessBase"]
[SourceQuality "1"]
[TimeControl "5400+30"]

{[%evp 17,71,0,11,12,1,0,14,-2,0,-1,0,-8,-7,-11,30,28,88,88,82,71,96,45,46,46,34,35,34,47,40,64,53,54,47,4,64,55,73,54,308,315,287,195,179,182,183,134,144,137,138,135,332,327,614,628,1052,1008]} 1. Nf3 {[%emt 0:00:15]} d5 {[%emt 0:00:36]} 2. g3 {[%emt 0:00:07]} Nf6 {[%emt 0:00:29]} 3. Bg2 {[%emt 0:00:05]} e6 {[%emt 0:00:10]} 4. O-O {[%emt 0:00:05]} Be7 {[%emt 0:00:08]} 5. d3 {[%emt 0:00:03]} c5 {[%emt 0:01:51]} 6. Nbd2 {[%emt 0:00:06]} Nc6 {[%emt 0:00:42]} 7. e4 {[%emt 0:00:05]} O-O {[%emt 0:06:29]} 8. Re1 {[%emt 0:01:06]} dxe4 {[%emt 0:02:43]} 9. dxe4 {[%emt 0:00:06]} e5 {[%emt 0:00:49]} 10. Nc4 {[%emt 0:01:49] C00: French: Unusual White 2nd moves.} Qc7 {[%emt 0:04:36]} 11. Ne3 {[%emt 0:15:11]} Be6 {[%emt 0:15:01] [#]} 12. Ng5 $146 {[%emt 0:14:17] The position is equal.} ({Predecessor:} 12. Nd5 Nxd5 13. exd5 Rfd8 14. c4 Bg4 15. Qd3 Bxf3 16. Qxf3 {½-½ (16) Ludgate,A (2417)-Anderson,P (2541) FICGS email 2014}) 12... Rad8 {[%emt 0:04:52]} 13. Bd2 {[%emt 0:04:46]} Bc8 {[%emt 0:10:21]} 14. Nd5 {[%emt 0:00:53]} Nxd5 {[%emt 0:01:52]} 15. exd5 {[%emt 0:00:12]} Nb4 {[%emt 0:00:29]} 16. c4 $1 {[%emt 0:04:43]} h6 {[%emt 0:03:28] [#]} (16... f5 $11 {remains equal.}) 17. Nf3 $1 $16 {[%emt 0:00:41]} Bd6 {[%emt 0:04:18]} 18. Bc3 {[%emt 0:09:00] Hoping for a3.} Bf5 {[%emt 0:05:12]} 19. Bxe5 {[%emt 0:05:52]} (19. Nxe5 Nc2 20. Ng4 Nxe1 $15) ({White should play} 19. a3 $16 Nc2 20. Rxe5 Bxe5 21. Bxe5) 19... Nc2 $14 {[%emt 0:04:11]} 20. Bxd6 {[%emt 0:00:14]} Qxd6 {[%emt 0:00:01]} 21. Re5 {[%emt 0:00:41]} Qf6 {[%emt 0:01:37]} 22. Rc1 {[%emt 0:04:57][%cal Ba1c1,Bc1c3,Bc3e3][%mdl 32]} Nb4 {[%emt 0:02:08]} 23. Rc3 {[%emt 0:18:26] Prevents Nd3.} Nxa2 {[%emt 0:05:22]} 24. Rce3 $36 {[%emt 0:01:14][%mdl 2048] White has some pressure.} Nb4 {[%emt 0:00:11]} 25. Qe2 {[%emt 0:05:12]} Bh7 {[%emt 0:02:41]} (25... b5 $11) 26. Ne1 {[%emt 0:01:19]} Bg6 {[%emt 0:03:55]} 27. h4 {[%emt 0:02:35][%cal Bh2h4,Bh4h5][%mdl 32]} Rd6 $2 {[%emt 0:06:54][%mdl 8192]} (27... a5 $14) 28. h5 $18 {[%emt 0:00:35]} Bb1 {[%emt 0:00:13] [#]} 29. Be4 $1 {[%emt 0:03:27]} Bxe4 {[%emt 0:01:23]} 30. R3xe4 {[%emt 0:00:01]} ({Much less strong is} 30. R5xe4 $6 b5 $16) 30... b5 {[%emt 0:00:23]} 31. Ng2 {[%emt 0:01:47]} (31. b3 $18) 31... bxc4 $16 {[%emt 0:01:53]} 32. Qxc4 {[%emt 0:01:50]} Qd8 {[%emt 0:03:47][%cal Rb4d5]} 33. Ne3 {[%emt 0:00:25] Threatens to win with Nf5.} (33. Qxc5 Nd3 34. Qc4 Nxe5 35. Rxe5 Rb6 $17) 33... Qd7 {[%emt 0:02:46]} (33... Kh8 $16 34. Rf5 (34. Qxc5 Nd3 $11) 34... Qc7) 34. Re7 $18 {[%emt 0:01:34]} ({Worse is} 34. Qxc5 Nd3 35. Qd4 Nxe5 36. Qxe5 Rf6 $11) 34... Qd8 {[%emt 0:00:05]} (34... Qc8 35. Rxa7 Ra6 36. Rxa6 Qxa6 37. Qxc5 Nd3) 35. R4e5 {[%emt 0:00:45]} Rd7 {[%emt 0:01:37] [#]} 36. Qg4 $1 {[%emt 0:01:43] Weighted Error Value: White=0.13 (very precise) /Black=0.42} 1-0

[Event "Chhattisgarh Masters GM 2022"]
[Site "Chhattisgarh"]
[Date "2022.09.21"]
[Round "3.8"]
[White "Saravana, Krishnan P."]
[Black "Kishan, Gangolli"]
[Result "1-0"]
[ECO "C07"]
[WhiteElo "2261"]
[BlackElo "2109"]
[Annotator "TA"]
[PlyCount "81"]
[EventDate "2022.09.19"]
[EventCountry "IND"]
[SourceTitle "playchess.com"]
[Source "ChessBase"]
[SourceQuality "1"]
[TimeControl "5400+30"]

{[%evp 9,81,26,12,6,19,5,22,0,14,0,0,7,0,0,8,8,17,-15,82,79,69,64,109,101,109,58,86,93,104,102,260,255,254,255,250,260,263,262,261,256,303,291,300,292,290,284,603,599,595,597,582,557,369,342,427,488,654,670,1367,1262,2502,2414,2372,2326,3358,2635,12832,12833,12840,12840,12840,12840,12839,12839]} 1. e4 {[%emt 0:00:03]} e6 {[%emt 0:00:18]} 2. d4 {[%emt 0:00:06]} d5 {[%emt 0:00:13]} 3. Nd2 {[%emt 0:00:22]} c5 {[%emt 0:00:20]} 4. exd5 {[%emt 0:01:59]} Qxd5 {[%emt 0:00:17]} 5. dxc5 {[%emt 0:00:54]} Nf6 {[%emt 0:00:38]} 6. Ngf3 {[%emt 0:00:20] C07: French Tarrasch: 3...c5, 4 Ngf3 and 4 exd5 Qxd5.} Qxc5 {[%emt 0:00:58]} 7. Bd3 {[%emt 0:00:34]} Nbd7 {[%emt 0:01:55]} 8. Qe2 {[%emt 0:02:22] The position is equal.} Be7 {[%emt 0:09:04]} 9. Nb3 {[%emt 0:05:12]} Qc7 {[%emt 0:02:50]} 10. Bg5 {[%emt 0:00:30] [#]} a6 $146 {[%emt 0:01:40]} ({Predecessor:} 10... O-O 11. O-O-O a6 12. Kb1 b5 13. h4 Bb7 14. h5 h6 15. Bh4 Rfe8 16. Bg3 Qb6 {0-1 (41) Salgado Lopez,I (2624)-Nisipeanu,L (2674) Germany 2019}) 11. Bh4 {[%emt 0:06:24]} Nd5 {[%emt 0:31:25][%cal Bf6d5,Bd5e7,Be7c6][%mdl 32]} 12. Bxe7 {[%emt 0:04:43]} Nxe7 {[%emt 0:04:29]} 13. O-O-O {[%emt 0:07:12]} Nc5 {[%emt 0:08:50]} (13... b5 $11) 14. Nxc5 $16 {[%emt 0:11:51]} Qxc5 {[%emt 0:00:07]} 15. Kb1 {[%emt 0:00:03]} Nc6 {[%emt 0:04:32]} 16. Be4 {[%emt 0:05:42]} Bd7 {[%emt 0:07:02]} 17. Rd2 {[%emt 0:06:20]} ({White should try} 17. a3 $16) 17... O-O-O {[%emt 0:01:38]} 18. Rhd1 {[%emt 0:01:04]} Kc7 {[%emt 0:10:13]} 19. Rd3 {[%emt 0:06:42][%cal Bd2d3,Bd3d4,Bd4c4][%mdl 32] White is more active.} f6 $2 {[%emt 0:10:59] This move loses the game for Black.} (19... e5 $16 {was necessary.}) 20. Bxc6 $18 {[%emt 0:05:42]} (20. Qd2 Bc8 $14) 20... Bxc6 {[%emt 0:00:07]} 21. Nd4 {[%emt 0:00:14]} ({Not} 21. Qxe6 Rxd3 22. cxd3 (22. Rxd3 Qxf2 23. Qd6+ Kc8 $11) 22... Qxf2 $11) 21... Rxd4 {[%emt 0:01:16]} 22. Rxd4 {[%emt 0:00:08]} e5 {[%emt 0:00:20]} 23. Rc4 {[%emt 0:08:24]} Qe7 {[%emt 0:00:34]} 24. Qd2 {[%emt 0:00:31]} h5 {[%emt 0:01:02]} 25. Qa5+ {[%emt 0:00:35]} Kb8 {[%emt 0:00:48] [#]} 26. Rxc6 {[%emt 0:00:50][%mdl 512]} bxc6 {[%emt 0:00:13]} 27. Qxa6 {[%emt 0:00:16][%mdl 4096] Endgame Strongly threatening Rd3. KQR-KQR} Rc8 $2 {[%emt 0:01:25]} (27... Qb7 28. Qxb7+ Kxb7 29. Rd7+ Kb6 30. Rxg7 Rf8) 28. Rd3 {[%emt 0:02:19] And now Rb3+ would win.} Rc7 {[%emt 0:00:04]} 29. Rb3+ {[%emt 0:04:27]} ({Weaker is} 29. Ra3 Ra7 30. Qb6+ (30. Qxc6 Rxa3 31. bxa3 Qxa3 $16) 30... Rb7 $18) 29... Rb7 {[%emt 0:00:07]} 30. Rxb7+ {[%emt 0:00:46]} Qxb7 {[%emt 0:00:06]} 31. Qxb7+ {[%emt 0:00:05]} Kxb7 {[%emt 0:00:03] KP-KP} 32. b4 {[%emt 0:00:21] White is clearly winning.} f5 {[%emt 0:00:50]} 33. h4 {[%emt 0:00:30] [#] Threatens to win with Kb2.} Kb6 {[%emt 0:00:43]} 34. a4 {[%emt 0:04:45] Hoping for Kb2.} Ka6 {[%emt 0:00:49]} 35. Kc1 {[%emt 0:00:21]} Kb6 {[%emt 0:00:17]} 36. Kd2 {[%emt 0:00:06]} Ka6 {[%emt 0:00:06]} 37. Kd3 {[%emt 0:00:32] Black must now prevent Kc4.} Kb6 {[%emt 0:00:08]} 38. Kc4 {[%emt 0:00:24]} Kb7 {[%emt 0:00:53]} 39. Kc5 {[%emt 0:02:04] White threatens a5 and mate.} Kc7 {[%emt 0:00:07]} 40. b5 {[%emt 0:01:06]} cxb5 {[%emt 0:00:35]} 41. axb5 {[%emt 0:00:05] Weighted Error Value: White=0.05 (flawless) /Black=0.48} 1-0